[Event "*** Titled Tuesday 3|2 Blitz"]
[Site "Chess.com"]
[Date "2016.01.05"]
[Round "1"]
[White "Penguininja"]
[Black "DeviatkinAndrey"]
[Result "0-1"]
[WhiteElo "2149"]
[BlackElo "2481"]
[TimeControl "180+2"]
[EndTime "17:10:38 PST"]
[Termination "DeviatkinAndrey won by resignation"]

1. d4 {[%clk 0:03:01.9]} 1... d5 {[%clk 0:02:34.2]} 2. c4 {[%clk 0:03:02.6]}
2... dxc4 {[%clk 0:02:35.4]} 3. e3 {[%clk 0:03:01.8]} 3... e5 {[%clk 0:02:35.1]}
4. Bxc4 {[%clk 0:02:59.4]} 4... Nc6 {[%clk 0:02:36.1]} 5. Ne2 {[%clk 0:02:53.2]}
5... Nf6 {[%clk 0:02:30.9]} 6. O-O {[%clk 0:02:54.2]} 6... Bd6 {[%clk
0:02:14.9]} 7. d5 {[%clk 0:02:47.9]} 7... Ne7 {[%clk 0:02:15.3]} 8. Ng3 {[%clk
0:02:41.6]} 8... h5 {[%clk 0:02:13]} 9. Nc3 {[%clk 0:02:42.6]} 9... h4 {[%clk
0:01:49.7]} 10. Nge4 {[%clk 0:02:43.5]} 10... Bf5 {[%clk 0:01:41.6]} 11. Bb5+
{[%clk 0:02:35.3]} 11... Nd7 {[%clk 0:01:35.1]} 12. Nxd6+ {[%clk 0:02:29.6]}
12... cxd6 {[%clk 0:01:35.9]} 13. e4 {[%clk 0:02:31.5]} 13... Bg6 {[%clk
0:01:36.5]} 14. Bg5 {[%clk 0:02:10.5]} 14... a6 {[%clk 0:01:32.6]} 15. Be2
{[%clk 0:02:00.3]} 15... f6 {[%clk 0:01:30.1]} 16. Be3 {[%clk 0:02:01]} 16...
O-O {[%clk 0:01:23.7]} 17. a4 {[%clk 0:01:52.7]} 17... Rc8 {[%clk 0:01:20.1]}
18. Qb3 {[%clk 0:01:41.4]} 18... Nc5 {[%clk 0:01:13.6]} 19. Bxc5 {[%clk
0:01:37.3]} 19... Rxc5 {[%clk 0:01:14.7]} 20. Qxb7 {[%clk 0:01:36.8]} 20... a5
{[%clk 0:01:16.2]} 21. Bb5 {[%clk 0:01:26.3]} 21... f5 {[%clk 0:01:05]} 22. exf5
{[%clk 0:01:22.3]} 22... Nxf5 {[%clk 0:01:03.9]} 23. Ne4 {[%clk 0:01:04.9]}
23... Rc7 {[%clk 0:01:02.8]} 24. Qb6 {[%clk 0:01:04]} 24... h3 {[%clk
0:01:02.4]} 25. g3 {[%clk 0:00:45.9]} 25... Rc2 {[%clk 0:00:37.3]} 26. Qxd8
{[%clk 0:00:41.1]} 26... Rxd8 {[%clk 0:00:38.4]} 27. Rac1 {[%clk 0:00:23.5]}
27... Rxb2 {[%clk 0:00:31.6]} 28. Ng5 {[%clk 0:00:20.5]} 28... Nd4 {[%clk
0:00:32.1]} 29. f4 {[%clk 0:00:20.4]} 29... e4 {[%clk 0:00:17.9]} 30. f5 {[%clk
0:00:19.2]} 30... Bxf5 {[%clk 0:00:18.5]} 31. Rcd1 {[%clk 0:00:11.8]} 31... Nf3+
{[%clk 0:00:14.7]} 32. Nxf3 {[%clk 0:00:13.2]} 32... exf3 {[%clk 0:00:16.3]} 33.
Bd3 {[%clk 0:00:14.7]} 33... Bg4 {[%clk 0:00:16.8]} 34. Rc1 {[%clk 0:00:14.1]}
34... Re8 {[%clk 0:00:14.9]} 35. Rf2 {[%clk 0:00:14.7]} 35... Rb3 {[%clk
0:00:14.7]} 36. Bf1 {[%clk 0:00:15.2]} 36... g5 {[%clk 0:00:14.9]} 37. Rc4
{[%clk 0:00:16.6]} 37... Bf5 {[%clk 0:00:14.6]} 38. Rc6 {[%clk 0:00:16.6]} 38...
Rd8 {[%clk 0:00:15.2]} 39. Ra6 {[%clk 0:00:12.6]} 39... g4 {[%clk 0:00:12.4]}
40. Rxa5 {[%clk 0:00:14.1]} 40... Rb1 {[%clk 0:00:13.7]} 41. Rb5 {[%clk
0:00:14.5]} 41... Ra1 {[%clk 0:00:14.7]} 42. a5 {[%clk 0:00:15.3]} 42... Re8
{[%clk 0:00:15]} 43. a6 {[%clk 0:00:13.4]} 43... Rxa6 {[%clk 0:00:13.5]} 44. Rb8
{[%clk 0:00:14.4]} 44... Rxb8 {[%clk 0:00:14.1]} 45. Bxa6 {[%clk 0:00:16]} 45...
Rb1+ {[%clk 0:00:14.4]} 46. Rf1 {[%clk 0:00:17.6]} 46... Rb6 {[%clk 0:00:15]}
47. Bc4 {[%clk 0:00:18.3]} 47... Rb4 {[%clk 0:00:16]} 48. Ba2 {[%clk 0:00:19.5]}
48... Kg7 {[%clk 0:00:15.6]} 49. Rf2 {[%clk 0:00:19.8]} 49... Kf6 {[%clk
0:00:16.3]} 50. Rd2 {[%clk 0:00:21]} 50... Ra4 {[%clk 0:00:16.5]} 51. Kf2 {[%clk
0:00:22.1]} 51... Ra3 {[%clk 0:00:17.8]} 52. Bc4 {[%clk 0:00:23]} 52... Ke5
{[%clk 0:00:18.3]} 53. Bf1 {[%clk 0:00:24.4]} 53... Be4 {[%clk 0:00:19.1]} 54.
Bc4 {[%clk 0:00:25]} 54... Ra1 {[%clk 0:00:19.7]} 55. Ke3 {[%clk 0:00:25.1]}
55... Re1+ {[%clk 0:00:20.7]} 56. Kf2 {[%clk 0:00:26.6]} 56... Rc1 {[%clk
0:00:20.9]} 57. Ba2 {[%clk 0:00:27.3]} 57... Rc2 {[%clk 0:00:20.7]} 58. Rxc2
{[%clk 0:00:20.8]} 58... Bxc2 {[%clk 0:00:21.8]} 59. Bc4 {[%clk 0:00:17.9]}
59... Be4 {[%clk 0:00:20.6]} 60. Ba6 {[%clk 0:00:18.8]} 60... Bxd5 {[%clk
0:00:18.3]} 61. Ke3 {[%clk 0:00:20.4]} 61... Be6 {[%clk 0:00:18.9]} 62. Bf1
{[%clk 0:00:19.5]} 62... d5 {[%clk 0:00:20.2]} 63. Kd2 {[%clk 0:00:20.8]} 63...
d4 {[%clk 0:00:21.4]} 64. Ke1 {[%clk 0:00:22.3]} 64... Ke4 {[%clk 0:00:22.3]}
65. Kf2 {[%clk 0:00:23.8]} 65... d3 {[%clk 0:00:23.8]} 66. Kg1 {[%clk
0:00:22.3]} 66... Ke3 {[%clk 0:00:24.1]} 67. Kh1 {[%clk 0:00:23.8]} 67... d2
{[%clk 0:00:24.9]} 68. Kg1 {[%clk 0:00:18.3]} 68... f2+ {[%clk 0:00:25.5]} 0-1

[Event "*** Titled Tuesday 3|2 Blitz"]
[Site "Chess.com"]
[Date "2016.01.05"]
[Round "1"]
[White "jcibarra"]
[Black "TheMagician"]
[Result "1-0"]
[WhiteElo "2513"]
[BlackElo "2157"]
[TimeControl "180+2"]
[EndTime "17:10:40 PST"]
[Termination "jcibarra won by resignation"]

1. e4 {[%clk 0:02:57.9]} 1... c5 {[%clk 0:03:00.3]} 2. Nf3 {[%clk 0:02:58.6]}
2... e6 {[%clk 0:03:01.1]} 3. d4 {[%clk 0:03:00]} 3... cxd4 {[%clk 0:03:02.1]}
4. Nxd4 {[%clk 0:03:01.9]} 4... Nc6 {[%clk 0:03:02.5]} 5. Nc3 {[%clk 0:03:02.7]}
5... Nf6 {[%clk 0:03:02.6]} 6. Ndb5 {[%clk 0:03:02.3]} 6... Bb4 {[%clk
0:02:51.1]} 7. a3 {[%clk 0:03:02.7]} 7... Bxc3+ {[%clk 0:02:51.3]} 8. Nxc3
{[%clk 0:03:04.6]} 8... d5 {[%clk 0:02:51]} 9. Bd3 {[%clk 0:03:06.1]} 9... O-O
{[%clk 0:02:47.1]} 10. O-O {[%clk 0:02:57.2]} 10... Ne5 {[%clk 0:02:47.6]} 11.
Bg5 {[%clk 0:02:48.6]} 11... Nxd3 {[%clk 0:02:47.4]} 12. Qxd3 {[%clk 0:02:45.8]}
12... d4 {[%clk 0:02:34.9]} 13. Ne2 {[%clk 0:02:37]} 13... e5 {[%clk 0:02:25.4]}
14. f4 {[%clk 0:02:36]} 14... h6 {[%clk 0:02:26.3]} 15. Bxf6 {[%clk 0:02:22.5]}
15... Qxf6 {[%clk 0:02:23.9]} 16. fxe5 {[%clk 0:02:21.7]} 16... Qxe5 {[%clk
0:02:24.1]} 17. Qxd4 {[%clk 0:02:21.1]} 17... Qg5 {[%clk 0:02:23.8]} 18. Nf4
{[%clk 0:02:08.7]} 18... Be6 {[%clk 0:02:16.4]} 19. Rf3 {[%clk 0:01:56.7]} 19...
Bg4 {[%clk 0:02:07.1]} 20. Rf2 {[%clk 0:01:55.1]} 20... Rfd8 {[%clk 0:02:02.6]}
21. Nd5 {[%clk 0:01:53]} 21... Be6 {[%clk 0:02:01.9]} 22. c4 {[%clk 0:01:53.5]}
22... b6 {[%clk 0:01:56.9]} 23. Rd1 {[%clk 0:01:50.6]} 23... Rac8 {[%clk
0:01:55]} 24. b3 {[%clk 0:01:44.6]} 24... Kh8 {[%clk 0:01:51.1]} 25. Qd2 {[%clk
0:01:34.8]} 25... Qe5 {[%clk 0:01:46.2]} 26. Qd4 {[%clk 0:01:20.4]} 26... f6
{[%clk 0:01:46.8]} 27. Qxe5 {[%clk 0:01:14.9]} 27... fxe5 {[%clk 0:01:48]} 28.
Rfd2 {[%clk 0:01:16.2]} 28... Rd7 {[%clk 0:01:38.7]} 29. a4 {[%clk 0:01:14.6]}
29... Rcd8 {[%clk 0:01:34.4]} 30. h3 {[%clk 0:01:14.2]} 30... Kh7 {[%clk
0:01:22.8]} 31. Kf2 {[%clk 0:01:15.1]} 31... Rf8+ {[%clk 0:01:14.7]} 32. Ke3
{[%clk 0:01:15.8]} 32... Rdf7 {[%clk 0:01:15.7]} 33. Nb4 {[%clk 0:01:13.9]}
33... Bxh3 {[%clk 0:01:11]} 34. Nd3 {[%clk 0:01:05.8]} 34... Bg4 {[%clk
0:01:07.3]} 35. Rc1 {[%clk 0:00:57.6]} 35... Re7 {[%clk 0:01:05.7]} 36. b4
{[%clk 0:00:58.8]} 36... Rc8 {[%clk 0:01:05.9]} 37. c5 {[%clk 0:00:57.7]} 37...
bxc5 {[%clk 0:00:54.6]} 38. Rxc5 {[%clk 0:00:59.6]} 38... Rb8 {[%clk 0:00:55.3]}
39. Nxe5 {[%clk 0:00:58.2]} 39... Rxb4 {[%clk 0:00:54.5]} 40. Rd4 {[%clk
0:00:54.8]} 40... Rb3+ {[%clk 0:00:43.5]} 41. Rd3 {[%clk 0:00:53.7]} 41... Rb4
{[%clk 0:00:43.9]} 42. a5 {[%clk 0:00:48.7]} 42... Ra4 {[%clk 0:00:43.1]} 43.
Rd8 {[%clk 0:00:44.4]} 43... h5 {[%clk 0:00:41.8]} 44. Kf4 {[%clk 0:00:39.1]}
44... Re6 {[%clk 0:00:39]} 45. Rc7 {[%clk 0:00:22.4]} 45... Ra1 {[%clk
0:00:22.4]} 46. Nxg4 {[%clk 0:00:20.4]} 46... Rf1+ {[%clk 0:00:16.7]} 47. Kg3
{[%clk 0:00:15.3]} 47... hxg4 {[%clk 0:00:16.9]} 48. Rdd7 {[%clk 0:00:15.1]}
48... Rg6 {[%clk 0:00:13.5]} 49. Rxa7 {[%clk 0:00:15.5]} 49... Ra1 {[%clk
0:00:14]} 50. Rd5 {[%clk 0:00:15.1]} 50... Ra4 {[%clk 0:00:14.3]} 51. Rh5+
{[%clk 0:00:15.5]} 51... Rh6 {[%clk 0:00:15.7]} 52. Rg5 {[%clk 0:00:12.9]} 52...
Rg6 {[%clk 0:00:10.9]} 53. Rxg6 {[%clk 0:00:14.2]} 53... Kxg6 {[%clk 0:00:12.1]}
54. Kf4 {[%clk 0:00:15.8]} 54... g3 {[%clk 0:00:12.8]} 55. a6 {[%clk 0:00:16]}
55... Kh6 {[%clk 0:00:13.2]} 56. Ra8 {[%clk 0:00:16.5]} 56... Ra5 {[%clk
0:00:14.3]} 57. Kxg3 {[%clk 0:00:17]} 57... Kg5 {[%clk 0:00:14.8]} 58. Kh3
{[%clk 0:00:16]} 58... Ra3+ {[%clk 0:00:16.7]} 59. g3 {[%clk 0:00:16.8]} 59...
g6 {[%clk 0:00:17.6]} 60. Kg2 {[%clk 0:00:16]} 60... Kg4 {[%clk 0:00:18.6]} 61.
Kf2 {[%clk 0:00:16.9]} 61... Ra2+ {[%clk 0:00:20.5]} 62. Ke3 {[%clk 0:00:18.1]}
62... Kxg3 {[%clk 0:00:22]} 63. e5 {[%clk 0:00:18.9]} 63... g5 {[%clk
0:00:23.1]} 64. e6 {[%clk 0:00:20.2]} 64... Ra1 {[%clk 0:00:23.5]} 65. a7 {[%clk
0:00:21.6]} 65... Re1+ {[%clk 0:00:23.7]} 66. Kd2 {[%clk 0:00:23]} 66... Rxe6
{[%clk 0:00:24.1]} 67. Rg8 {[%clk 0:00:23.6]} 67... Rd6+ {[%clk 0:00:25]} 68.
Ke3 {[%clk 0:00:25]} 68... Rg6 {[%clk 0:00:24.5]} 69. Rxg6 {[%clk 0:00:24.9]}
1-0

[Event "*** Titled Tuesday 3|2 Blitz"]
[Site "Chess.com"]
[Date "2016.01.05"]
[Round "2"]
[White "nijat_a"]
[Black "AUSSIE_PINOY"]
[Result "1-0"]
[WhiteElo "2713"]
[BlackElo "2334"]
[TimeControl "180+2"]
[EndTime "17:18:21 PST"]
[Termination "nijat_a won by checkmate"]

1. d4 {[%clk 0:03:01.9]} 1... c5 {[%clk 0:02:58.4]} 2. Nf3 {[%clk 0:03:03.8]}
2... cxd4 {[%clk 0:02:59.3]} 3. Nxd4 {[%clk 0:03:05]} 3... d5 {[%clk 0:03:00.4]}
4. g3 {[%clk 0:03:05.3]} 4... e5 {[%clk 0:03:01.3]} 5. Nb3 {[%clk 0:03:05.6]}
5... h6 {[%clk 0:03:02.2]} 6. Bg2 {[%clk 0:03:05.6]} 6... Nf6 {[%clk 0:03:03.2]}
7. c4 {[%clk 0:03:05.5]} 7... d4 {[%clk 0:03:03.8]} 8. O-O {[%clk 0:03:06.2]}
8... Nc6 {[%clk 0:03:04.9]} 9. f4 {[%clk 0:03:06.5]} 9... e4 {[%clk 0:03:03.5]}
10. f5 {[%clk 0:03:06.7]} 10... a5 {[%clk 0:03:01.4]} 11. e3 {[%clk 0:03:06.4]}
11... d3 {[%clk 0:03:00.3]} 12. Nc3 {[%clk 0:03:07.1]} 12... a4 {[%clk
0:02:59.9]} 13. Nd2 {[%clk 0:03:08.5]} 13... a3 {[%clk 0:02:57.8]} 14. Ndxe4
{[%clk 0:03:08]} 14... axb2 {[%clk 0:02:52]} 15. Bxb2 {[%clk 0:03:08.7]} 15...
Nxe4 {[%clk 0:02:49.4]} 16. Bxe4 {[%clk 0:03:08.9]} 16... Qb6 {[%clk 0:02:50]}
17. Qxd3 {[%clk 0:03:01.7]} 17... Qxb2 {[%clk 0:02:44.8]} 18. Bxc6+ {[%clk
0:03:02.4]} 18... bxc6 {[%clk 0:02:43.5]} 19. Qe4+ {[%clk 0:03:04.1]} 19... Kd8
{[%clk 0:02:41]} 20. Rfd1+ {[%clk 0:03:01.3]} 20... Bd7 {[%clk 0:02:36.9]} 21.
Qxc6 {[%clk 0:03:01.8]} 21... Ra7 {[%clk 0:02:34.7]} 22. Rab1 {[%clk 0:03:02.2]}
22... Qxc3 {[%clk 0:02:13.9]} 23. Rb8+ {[%clk 0:03:01.9]} 23... Ke7 {[%clk
0:02:15.1]} 24. Qd6# {[%clk 0:03:03.8]} 1-0

[Event "*** Titled Tuesday 3|2 Blitz"]
[Site "Chess.com"]
[Date "2016.01.05"]
[Round "2"]
[White "Silent_Terror"]
[Black "ChessChronicles123"]
[Result "1-0"]
[WhiteElo "2307"]
[BlackElo "1702"]
[TimeControl "180+2"]
[EndTime "17:19:03 PST"]
[Termination "Silent_Terror won by resignation"]

1. e4 {[%clk 0:03:01.9]} 1... c5 {[%clk 0:02:59.8]} 2. Nc3 {[%clk 0:03:01.9]}
2... d6 {[%clk 0:03:00.5]} 3. f4 {[%clk 0:03:02.4]} 3... Nf6 {[%clk 0:03:01.2]}
4. Nf3 {[%clk 0:03:03.1]} 4... g6 {[%clk 0:03:02.1]} 5. Bb5+ {[%clk 0:03:04]}
5... Bd7 {[%clk 0:03:02.5]} 6. Bxd7+ {[%clk 0:03:04.9]} 6... Nbxd7 {[%clk
0:03:01.8]} 7. O-O {[%clk 0:03:06.2]} 7... Bg7 {[%clk 0:03:02.3]} 8. Qe1 {[%clk
0:03:07.2]} 8... O-O {[%clk 0:03:03.1]} 9. Qh4 {[%clk 0:03:08.2]} 9... e5 {[%clk
0:03:01.2]} 10. d3 {[%clk 0:03:07.8]} 10... Nh5 {[%clk 0:02:57.3]} 11. Qxd8
{[%clk 0:03:04.8]} 11... Raxd8 {[%clk 0:02:56.7]} 12. fxe5 {[%clk 0:03:06.2]}
12... Nxe5 {[%clk 0:02:55.2]} 13. Nd5 {[%clk 0:02:56.3]} 13... Nc6 {[%clk
0:02:48.7]} 14. Bg5 {[%clk 0:02:39.1]} 14... Rd7 {[%clk 0:02:35.4]} 15. g4
{[%clk 0:02:34.6]} 15... f6 {[%clk 0:02:36.5]} 16. Bd2 {[%clk 0:02:30.4]} 16...
Nd4 {[%clk 0:02:20]} 17. Nxd4 {[%clk 0:02:27.8]} 17... cxd4 {[%clk 0:02:20]} 18.
gxh5 {[%clk 0:02:28.5]} 18... gxh5 {[%clk 0:02:20.2]} 19. Kh1 {[%clk 0:02:22.9]}
19... f5 {[%clk 0:02:16.9]} 20. Rxf5 {[%clk 0:02:14]} 20... Be5 {[%clk
0:02:17.4]} 21. Rg1+ {[%clk 0:02:12.5]} 21... Rg7 {[%clk 0:02:17.7]} 22. Rxg7+
{[%clk 0:02:13.6]} 22... Kxg7 {[%clk 0:02:18.5]} 23. Bh6+ {[%clk 0:02:12.9]}
23... Kxh6 {[%clk 0:02:17.3]} 24. Rxf8 {[%clk 0:02:13.7]} 1-0

[Event "*** Titled Tuesday 3|2 Blitz"]
[Site "Chess.com"]
[Date "2016.01.05"]
[Round "2"]
[White "AlexanderL"]
[Black "mateueasily"]
[Result "1-0"]
[WhiteElo "2594"]
[BlackElo "2332"]
[TimeControl "180+2"]
[EndTime "17:19:31 PST"]
[Termination "AlexanderL won by resignation"]

1. d4 {[%clk 0:03:01.9]} 1... Nf6 {[%clk 0:02:59.3]} 2. c4 {[%clk 0:03:02.6]}
2... e6 {[%clk 0:03:00.3]} 3. Nc3 {[%clk 0:03:03.5]} 3... Bb4 {[%clk 0:03:00.5]}
4. Qc2 {[%clk 0:03:04.2]} 4... Nc6 {[%clk 0:02:56]} 5. Nf3 {[%clk 0:03:04.2]}
5... O-O {[%clk 0:02:52.5]} 6. e4 {[%clk 0:02:46]} 6... Bxc3+ {[%clk 0:02:52.1]}
7. bxc3 {[%clk 0:02:46.5]} 7... d6 {[%clk 0:02:53.1]} 8. e5 {[%clk 0:02:41.6]}
8... dxe5 {[%clk 0:02:53.9]} 9. dxe5 {[%clk 0:02:42.6]} 9... Nd7 {[%clk
0:02:55]} 10. Ng5 {[%clk 0:02:38.2]} 10... g6 {[%clk 0:02:55]} 11. f4 {[%clk
0:02:38.3]} 11... b6 {[%clk 0:02:21.5]} 12. h4 {[%clk 0:02:23.9]} 12... Ne7
{[%clk 0:01:47.6]} 13. h5 {[%clk 0:02:18.5]} 13... Nf5 {[%clk 0:01:46]} 14. hxg6
{[%clk 0:02:13.9]} 14... hxg6 {[%clk 0:01:44.6]} 15. g4 {[%clk 0:02:12.2]} 15...
Ng3 {[%clk 0:01:38.2]} 16. Qh2 {[%clk 0:02:10.8]} 1-0

[Event "*** Titled Tuesday 3|2 Blitz"]
[Site "Chess.com"]
[Date "2016.01.05"]
[Round "2"]
[White "aspired"]
[Black "LyonBeast"]
[Result "0-1"]
[WhiteElo "2370"]
[BlackElo "2768"]
[TimeControl "180+2"]
[EndTime "17:20:02 PST"]
[Termination "LyonBeast won by resignation"]

1. e4 {[%clk 0:03:01.9]} 1... c5 {[%clk 0:02:56.7]} 2. Nf3 {[%clk 0:03:02.4]}
2... d6 {[%clk 0:02:57.9]} 3. Bb5+ {[%clk 0:03:02.6]} 3... Nd7 {[%clk
0:02:57.9]} 4. O-O {[%clk 0:03:02.6]} 4... a6 {[%clk 0:02:57.7]} 5. Bd3 {[%clk
0:03:02.6]} 5... Ngf6 {[%clk 0:02:58.3]} 6. Re1 {[%clk 0:03:03.1]} 6... b5
{[%clk 0:02:58.2]} 7. c4 {[%clk 0:03:03.4]} 7... g5 {[%clk 0:02:59.7]} 8. cxb5
{[%clk 0:03:01.8]} 8... g4 {[%clk 0:02:59.3]} 9. e5 {[%clk 0:03:02.7]} 9... dxe5
{[%clk 0:03:00.3]} 10. Ng5 {[%clk 0:03:03.1]} 10... Bg7 {[%clk 0:02:59.1]} 11.
Nc3 {[%clk 0:02:52.6]} 11... O-O {[%clk 0:02:56]} 12. b3 {[%clk 0:02:30.5]}
12... axb5 {[%clk 0:02:34.1]} 13. Nxb5 {[%clk 0:02:21.4]} 13... Ba6 {[%clk
0:02:21.1]} 14. Bb2 {[%clk 0:02:12.1]} 14... h6 {[%clk 0:02:14.5]} 15. Ne4
{[%clk 0:02:11.2]} 15... Nxe4 {[%clk 0:02:10.4]} 16. Rxe4 {[%clk 0:02:11.9]}
16... Nf6 {[%clk 0:02:11.2]} 17. Qe2 {[%clk 0:02:01]} 17... Bxb5 {[%clk
0:02:03]} 18. Bxb5 {[%clk 0:01:58.1]} 18... Nxe4 {[%clk 0:02:04.5]} 19. Qxe4
{[%clk 0:01:58.7]} 19... Qxd2 {[%clk 0:02:03.5]} 20. Bd3 {[%clk 0:01:54.9]}
20... Rfd8 {[%clk 0:01:56.8]} 21. Qh7+ {[%clk 0:01:47.4]} 21... Kf8 {[%clk
0:01:55.6]} 22. Bxe5 {[%clk 0:01:32.1]} 22... Bxe5 {[%clk 0:01:54.7]} 0-1

[Event "*** Titled Tuesday 3|2 Blitz"]
[Site "Chess.com"]
[Date "2016.01.05"]
[Round "2"]
[White "zanbato17"]
[Black "chess4life23"]
[Result "1-0"]
[WhiteElo "2232"]
[BlackElo "2139"]
[TimeControl "180+2"]
[EndTime "17:20:14 PST"]
[Termination "zanbato17 won by resignation"]

1. d4 {[%clk 0:03:01.9]} 1... Nf6 {[%clk 0:02:59.4]} 2. c4 {[%clk 0:03:03.1]}
2... e6 {[%clk 0:03:00.3]} 3. Nf3 {[%clk 0:03:04.2]} 3... b6 {[%clk 0:02:58.3]}
4. g3 {[%clk 0:03:05.3]} 4... Ba6 {[%clk 0:02:57.2]} 5. Qc2 {[%clk 0:03:06]}
5... c5 {[%clk 0:02:45.2]} 6. Bg2 {[%clk 0:03:01.8]} 6... Bb7 {[%clk 0:02:45.3]}
7. dxc5 {[%clk 0:03:01.6]} 7... Bxc5 {[%clk 0:02:42.7]} 8. O-O {[%clk
0:03:02.7]} 8... O-O {[%clk 0:02:33.3]} 9. Nc3 {[%clk 0:03:02.5]} 9... Nc6
{[%clk 0:02:20.2]} 10. a3 {[%clk 0:02:58.9]} 10... Rc8 {[%clk 0:01:55.1]} 11.
Rd1 {[%clk 0:02:47.7]} 11... a6 {[%clk 0:01:50.4]} 12. Bg5 {[%clk 0:02:46.1]}
12... Be7 {[%clk 0:01:48]} 13. b3 {[%clk 0:02:44.7]} 13... h6 {[%clk 0:01:42.6]}
14. Bf4 {[%clk 0:02:44.3]} 14... d6 {[%clk 0:01:40]} 15. Rd2 {[%clk 0:02:39.8]}
15... Nh5 {[%clk 0:01:39.7]} 16. Be3 {[%clk 0:02:40.1]} 16... b5 {[%clk
0:01:27.6]} 17. cxb5 {[%clk 0:02:37.8]} 17... axb5 {[%clk 0:01:28.6]} 18. Qd1
{[%clk 0:02:33.1]} 18... b4 {[%clk 0:01:02.6]} 19. axb4 {[%clk 0:02:27]} 19...
Nxb4 {[%clk 0:01:04.5]} 20. Rc1 {[%clk 0:02:25]} 20... Nf6 {[%clk 0:00:59.2]}
21. Na4 {[%clk 0:02:15.6]} 21... Qb6 {[%clk 0:00:55.4]} 22. Bxb6 {[%clk
0:02:15.4]} 1-0

[Event "*** Titled Tuesday 3|2 Blitz"]
[Site "Chess.com"]
[Date "2016.01.05"]
[Round "2"]
[White "Recombinant"]
[Black "Jahonas"]
[Result "1/2-1/2"]
[WhiteElo "2184"]
[BlackElo "2095"]
[TimeControl "180+2"]
[EndTime "17:21:03 PST"]
[Termination "Game drawn by agreement"]

1. d4 {[%clk 0:03:01.9]} 1... c5 {[%clk 0:02:55.5]} 2. d5 {[%clk 0:03:02.5]}
2... Nf6 {[%clk 0:02:55.3]} 3. c4 {[%clk 0:03:03.5]} 3... g6 {[%clk 0:02:56.5]}
4. Nc3 {[%clk 0:03:04.2]} 4... d6 {[%clk 0:02:57.6]} 5. Nf3 {[%clk 0:03:04.5]}
5... Bg7 {[%clk 0:02:58.7]} 6. Bg5 {[%clk 0:03:03.6]} 6... O-O {[%clk
0:02:59.3]} 7. e4 {[%clk 0:03:04.3]} 7... a6 {[%clk 0:02:59.9]} 8. Qd2 {[%clk
0:03:04.9]} 8... Nbd7 {[%clk 0:03:00.7]} 9. Be2 {[%clk 0:03:05.5]} 9... b5
{[%clk 0:03:00.7]} 10. cxb5 {[%clk 0:03:05.5]} 10... axb5 {[%clk 0:03:01.8]} 11.
Bxb5 {[%clk 0:03:07.4]} 11... Ba6 {[%clk 0:03:02.9]} 12. Bxa6 {[%clk 0:03:05.7]}
12... Rxa6 {[%clk 0:03:04]} 13. O-O {[%clk 0:03:07.4]} 13... Nb6 {[%clk
0:02:53.6]} 14. b3 {[%clk 0:03:04.8]} 14... Nfd7 {[%clk 0:02:46.9]} 15. Rac1
{[%clk 0:03:00.9]} 15... Re8 {[%clk 0:02:43.1]} 16. a4 {[%clk 0:02:58.8]} 16...
c4 {[%clk 0:02:38.3]} 17. bxc4 {[%clk 0:02:56.6]} 17... Nxa4 {[%clk 0:02:37.4]}
18. Nxa4 {[%clk 0:02:50.6]} 18... Rxa4 {[%clk 0:02:37.9]} 19. Bh6 {[%clk
0:02:51.3]} 19... Qc7 {[%clk 0:02:32.7]} 20. Bxg7 {[%clk 0:02:52]} 20... Kxg7
{[%clk 0:02:33.3]} 21. Qd4+ {[%clk 0:02:40.5]} 21... Kg8 {[%clk 0:02:29.1]} 22.
h3 {[%clk 0:02:39.4]} 22... Rc8 {[%clk 0:02:29.3]} 23. Nd2 {[%clk 0:02:35.1]}
23... Ne5 {[%clk 0:02:23.3]} 24. f4 {[%clk 0:02:36]} 24... Nxc4 {[%clk
0:02:23.4]} 25. f5 {[%clk 0:02:33.4]} 25... Qc5 {[%clk 0:02:22.9]} 26. Qxc5
{[%clk 0:02:31.4]} 26... Rxc5 {[%clk 0:02:23.1]} 27. Nxc4 {[%clk 0:02:24.3]}
27... Raxc4 {[%clk 0:02:23.7]} 28. Rxc4 {[%clk 0:02:25.4]} 28... Rxc4 {[%clk
0:02:24.7]} 29. fxg6 {[%clk 0:02:26.4]} 29... hxg6 {[%clk 0:02:22.8]} 30. Rf4
{[%clk 0:02:27.1]} 30... Kg7 {[%clk 0:02:20.3]} 31. Kf2 {[%clk 0:02:26.5]} 31...
Ra4 {[%clk 0:01:18.2]} 32. h4 {[%clk 0:02:21.2]} 32... f6 {[%clk 0:01:16.8]} 33.
Kg3 {[%clk 0:02:19.8]} 33... Ra3+ {[%clk 0:01:14.8]} 34. Rf3 {[%clk 0:02:20]}
34... Rxf3+ {[%clk 0:01:13.1]} 35. Kxf3 {[%clk 0:02:16.6]} 1/2-1/2

[Event "*** Titled Tuesday 3|2 Blitz"]
[Site "Chess.com"]
[Date "2016.01.05"]
[Round "2"]
[White "HansCoolNiemann"]
[Black "aNONoNonono"]
[Result "0-1"]
[WhiteElo "2221"]
[BlackElo "2167"]
[TimeControl "180+2"]
[EndTime "17:21:23 PST"]
[Termination "aNONoNonono won by resignation"]

1. d4 {[%clk 0:03:01.9]} 1... Nf6 {[%clk 0:03:00.5]} 2. c4 {[%clk 0:03:00.2]}
2... e6 {[%clk 0:03:00.2]} 3. Nc3 {[%clk 0:03:00.9]} 3... Bb4 {[%clk 0:03:00.6]}
4. Bg5 {[%clk 0:03:00.9]} 4... h6 {[%clk 0:02:58]} 5. Bh4 {[%clk 0:03:00.9]}
5... b6 {[%clk 0:02:55.9]} 6. f3 {[%clk 0:03:00.6]} 6... O-O {[%clk 0:02:45.8]}
7. e4 {[%clk 0:02:59.9]} 7... c5 {[%clk 0:02:40.5]} 8. d5 {[%clk 0:02:57.9]}
8... exd5 {[%clk 0:02:40.7]} 9. cxd5 {[%clk 0:02:58.5]} 9... Re8 {[%clk
0:02:39]} 10. Bd3 {[%clk 0:02:55.2]} 10... g5 {[%clk 0:02:32.5]} 11. Bf2 {[%clk
0:02:54.1]} 11... Nxd5 {[%clk 0:02:32.8]} 12. Qd2 {[%clk 0:02:55.4]} 12... Nf4
{[%clk 0:02:24.9]} 13. Nge2 {[%clk 0:02:54.7]} 13... Nxe2 {[%clk 0:01:55.6]} 14.
Bxe2 {[%clk 0:02:49.6]} 14... d5 {[%clk 0:01:41]} 15. exd5 {[%clk 0:02:41.5]}
15... Ba6 {[%clk 0:01:37.6]} 16. Be3 {[%clk 0:02:32.3]} 16... Bxe2 {[%clk
0:01:10.3]} 17. Kxe2 {[%clk 0:02:32.3]} 17... Nd7 {[%clk 0:01:00.9]} 18. Kf2
{[%clk 0:02:31.5]} 18... Ne5 {[%clk 0:01:00.2]} 19. b3 {[%clk 0:02:29.3]} 19...
Qf6 {[%clk 0:00:53.4]} 20. Ne4 {[%clk 0:02:02.8]} 20... Ng4+ {[%clk 0:00:52]}
21. Ke2 {[%clk 0:01:50.5]} 21... Rxe4 {[%clk 0:00:51.2]} 22. fxe4 {[%clk
0:01:48]} 22... Bxd2 {[%clk 0:00:51]} 23. Kxd2 {[%clk 0:01:49.9]} 23... Qb2+
{[%clk 0:00:49.7]} 24. Kd3 {[%clk 0:01:49.9]} 24... Nxe3 {[%clk 0:00:49.5]} 25.
Kxe3 {[%clk 0:01:50.3]} 25... Qd4+ {[%clk 0:00:51.1]} 26. Kf3 {[%clk 0:01:51]}
26... Qd3+ {[%clk 0:00:50.4]} 27. Kf2 {[%clk 0:01:50.2]} 27... Qxe4 {[%clk
0:00:51.4]} 28. Rhd1 {[%clk 0:01:49.9]} 28... Rd8 {[%clk 0:00:51.2]} 29. d6
{[%clk 0:01:47.7]} 29... Rxd6 {[%clk 0:00:50.8]} 30. Rxd6 {[%clk 0:01:47.5]}
30... Qf4+ {[%clk 0:00:51.4]} 31. Kg1 {[%clk 0:01:48.3]} 31... Qxd6 {[%clk
0:00:52]} 0-1